{"text_format":"1","workbook":"xlsx","n_sheets":6,"sheets":["CARACTERIZACIÓN","NOMENCLATURA Y PLANTA","Listas","Hoja1","Base_info_empleo","Hoja5"],"not_rendered":{"charts":0,"images":3,"macros":0,"external_links":0,"defined_names":12,"comments":1,"pivot_tables":0},"unopened":[],"bounds":{"document_bytes":16777216,"sheet_cells":100000,"rows_first":2000,"rows_last":500,"rows_between":2000,"halvings":0,"cell_chars":16384,"cell_head_chars":4096},"cells_cut":0,"cells_raw":0,"read":"whole","date_system":"1900"}

{"sheet":"CARACTERIZACIÓN","index":0,"n_rows":21,"n_cols":4,"rows_kept":21,"cut":false,"hidden":false,"merged":[[4,2,4,3]]}
[null,null,null,"DIRECCIÓN DE DESARROLLO ORGANIZACIONAL"]
[null,null,null,"DATOS DE CARACTERIZACIÓN DE LA ENTIDAD"]
[null,null,null,"A LA CUAL PERTENECE LA SECRETARIA DE EDUCACIÓN"]
[]
[null,null,"Relacione los datos básicos de caracterización de la entidad"]
[]
[null,null,"Código Sigep"]
[null,null," Nombre completo de la institución "]
[null,null,"NIT "]
[null,null,"Datos del representante legal "]
[null,null,"Correo electrónico institucional "]
[null,null,"Dirección de página web "]
[null,null,"Dirección de domicilio "]
[null,null,"Departamento "]
[null,null,"Ciudad o municipio. "]
[null,null,"Clasificación orgánica: (ejemplo: ejecutiva, entes autónomos, privados, legislativa, judicial) "]
[null,null,"Orden: Nacional o Territorial "]
[null,null,"Suborden: (departamental, municipal, distrital) "]
[null,null,"Nivel: Central o Descentralizado "]
[null,null,"Tipo de Descentralización: (directa o indirecta) "]
[null,null,"Adscrita o vinculada: "]

{"sheet":"NOMENCLATURA Y PLANTA","index":1,"n_rows":506,"n_cols":12,"rows_kept":506,"cut":false,"hidden":false,"merged":[[3,0,3,3],[0,0,0,11],[3,11,5,11],[2,0,2,11],[4,0,4,10]]}
["DIRECCIÓN DE DESARROLLO ORGANIZACIONAL"]
[]
["NOMENCLATURA Y PLANTA DE PERSONAL\n"]
["Acto Administrativo de Planta",null,null,null,null,null,null,null,null,null,null,"OBSERVACIONES"]
["Relacione los empleos establecidos por norma"]
["Id.","Nivel_doc","Decreto","Denominación del empleo","Código","Grado","No. de Empleos","Nombre de la Dependencia","Naturaleza del empleo","Tipo de Planta","Clase de Planta"]
[1]
[2,null,null,null,{"$f":"IF(D8=\"\",\"\",+D8)","v":""}]
[3,null,null,null,""]
[4,null,null,null,""]
[5,null,null,null,""]
[6,null,null,null,""]
[7,null,null,null,""]
[8,null,null,null,""]
[9,null,null,null,""]
[10,null,null,null,""]
[11,null,null,null,""]
[12,null,null,null,""]
[13,null,null,null,""]
[14,null,null,null,""]
[15,null,null,null,""]
[16,null,null,null,""]
[17,null,null,null,""]
[18,null,null,null,""]
[19,null,null,null,""]
[20,null,null,null,""]
[21,null,null,null,""]
[22,null,null,null,""]
[23,null,null,null,""]
[24,null,null,null,""]
[25,null,null,null,""]
[26,null,null,null,""]
[27,null,null,null,""]
[28,null,null,null,""]
[29,null,null,null,""]
[30,null,null,null,""]
[31,null,null,null,""]
[32,null,null,null,""]
[33,null,null,null,""]
[34,null,null,null,""]
[35,null,null,null,""]
[36,null,null,null,""]
[37,null,null,null,""]
[38,null,null,null,""]
[39,null,null,null,""]
[40,null,null,null,""]
[41,null,null,null,""]
[42,null,null,null,""]
[43,null,null,null,""]
[44,null,null,null,""]
[45,null,null,null,""]
[46,null,null,null,""]
[47,null,null,null,""]
[48,null,null,null,""]
[49,null,null,null,""]
[50,null,null,null,""]
[51,null,null,null,""]
[52,null,null,null,""]
[53,null,null,null,""]
[54,null,null,null,""]
[55,null,null,null,""]
[56,null,null,null,""]
[57,null,null,null,""]
[58,null,null,null,""]
[59,null,null,null,""]
[60,null,null,null,""]
[61,null,null,null,""]
[62,null,null,null,""]
[63,null,null,null,""]
[64,null,null,null,""]
[65,null,null,null,""]
[66,null,null,null,{"$f":"IF(D72=\"\",\"\",+D72)","v":""}]
[67,null,null,null,""]
[68,null,null,null,""]
[69,null,null,null,""]
[70,null,null,null,""]
[71,null,null,null,""]
[72,null,null,null,""]
[73,null,null,null,""]
[74,null,null,null,""]
[75,null,null,null,""]
[76,null,null,null,""]
[77,null,null,null,""]
[78,null,null,null,""]
[79,null,null,null,""]
[80,null,null,null,""]
[81,null,null,null,""]
[82,null,null,null,""]
[83,null,null,null,""]
[84,null,null,null,""]
[85,null,null,null,""]
[86,null,null,null,""]
[87,null,null,null,""]
[88,null,null,null,""]
[89,null,null,null,""]
[90,null,null,null,""]
[91,null,null,null,""]
[92,null,null,null,""]
[93,null,null,null,""]
[94,null,null,null,""]
[95,null,null,null,""]
[96,null,null,null,""]
[97,null,null,null,""]
[98,null,null,null,""]
[99,null,null,null,""]
[100,null,null,null,""]
[101,null,null,null,""]
[102,null,null,null,""]
[103,null,null,null,""]
[104,null,null,null,""]
[105,null,null,null,""]
[106,null,null,null,""]
[107,null,null,null,""]
[108,null,null,null,""]
[109,null,null,null,""]
[110,null,null,null,""]
[111,null,null,null,""]
[112,null,null,null,""]
[113,null,null,null,""]
[114,null,null,null,""]
[115,null,null,null,""]
[116,null,null,null,""]
[117,null,null,null,""]
[118,null,null,null,""]
[119,null,null,null,""]
[120,null,null,null,""]
[121,null,null,null,""]
[122,null,null,null,""]
[123,null,null,null,""]
[124,null,null,null,""]
[125,null,null,null,""]
[126,null,null,null,""]
[127,null,null,null,""]
[128,null,null,null,""]
[129,null,null,null,""]
[130,null,null,null,{"$f":"IF(D136=\"\",\"\",+D136)","v":""}]
[131,null,null,null,""]
[132,null,null,null,""]
[133,null,null,null,""]
[134,null,null,null,""]
[135,null,null,null,""]
[136,null,null,null,""]
[137,null,null,null,""]
[138,null,null,null,""]
[139,null,null,null,""]
[140,null,null,null,""]
[141,null,null,null,""]
[142,null,null,null,""]
[143,null,null,null,""]
[144,null,null,null,""]
[145,null,null,null,""]
[146,null,null,null,""]
[147,null,null,null,""]
[148,null,null,null,""]
[149,null,null,null,""]
[150,null,null,null,""]
[151,null,null,null,""]
[152,null,null,null,""]
[153,null,null,null,""]
[154,null,null,null,""]
[155,null,null,null,""]
[156,null,null,null,""]
[157,null,null,null,""]
[158,null,null,null,""]
[159,null,null,null,""]
[160,null,null,null,""]
[161,null,null,null,""]
[162,null,null,null,""]
[163,null,null,null,""]
[164,null,null,null,""]
[165,null,null,null,""]
[166,null,null,null,""]
[167,null,null,null,""]
[168,null,null,null,""]
[169,null,null,null,""]
[170,null,null,null,""]
[171,null,null,null,""]
[172,null,null,null,""]
[173,null,null,null,""]
[174,null,null,null,""]
[175,null,null,null,""]
[176,null,null,null,""]
[177,null,null,null,""]
[178,null,null,null,""]
[179,null,null,null,""]
[180,null,null,null,""]
[181,null,null,null,""]
[182,null,null,null,""]
[183,null,null,null,""]
[184,null,null,null,""]
[185,null,null,null,""]
[186,null,null,null,""]
[187,null,null,null,""]
[188,null,null,null,""]
[189,null,null,null,""]
[190,null,null,null,""]
[191,null,null,null,""]
[192,null,null,null,""]
[193,null,null,null,""]
[194,null,null,null,{"$f":"IF(D200=\"\",\"\",+D200)","v":""}]
[195,null,null,null,""]
[196,null,null,null,""]
[197,null,null,null,""]
[198,null,null,null,""]
[199,null,null,null,""]
[200,null,null,null,""]
[201,null,null,null,""]
[202,null,null,null,""]
[203,null,null,null,""]
[204,null,null,null,""]
[205,null,null,null,""]
[206,null,null,null,""]
[207,null,null,null,""]
[208,null,null,null,""]
[209,null,null,null,""]
[210,null,null,null,""]
[211,null,null,null,""]
[212,null,null,null,""]
[213,null,null,null,""]
[214,null,null,null,""]
[215,null,null,null,""]
[216,null,null,null,""]
[217,null,null,null,""]
[218,null,null,null,""]
[219,null,null,null,""]
[220,null,null,null,""]
[221,null,null,null,""]
[222,null,null,null,""]
[223,null,null,null,""]
[224,null,null,null,""]
[225,null,null,null,""]
[226,null,null,null,""]
[227,null,null,null,""]
[228,null,null,null,""]
[229,null,null,null,""]
[230,null,null,null,""]
[231,null,null,null,""]
[232,null,null,null,""]
[233,null,null,null,""]
[234,null,null,null,""]
[235,null,null,null,""]
[236,null,null,null,""]
[237,null,null,null,""]
[238,null,null,null,""]
[239,null,null,null,""]
[240,null,null,null,""]
[241,null,null,null,""]
[242,null,null,null,""]
[243,null,null,null,""]
[244,null,null,null,""]
[245,null,null,null,""]
[246,null,null,null,""]
[247,null,null,null,""]
[248,null,null,null,""]
[249,null,null,null,""]
[250,null,null,null,""]
[251,null,null,null,""]
[252,null,null,null,""]
[253,null,null,null,""]
[254,null,null,null,""]
[255,null,null,null,""]
[256,null,null,null,""]
[257,null,null,null,""]
[258,null,null,null,{"$f":"IF(D264=\"\",\"\",+D264)","v":""}]
[259,null,null,null,""]
[260,null,null,null,""]
[261,null,null,null,""]
[262,null,null,null,""]
[263,null,null,null,""]
[264,null,null,null,""]
[265,null,null,null,""]
[266,null,null,null,""]
[267,null,null,null,""]
[268,null,null,null,""]
[269,null,null,null,""]
[270,null,null,null,""]
[271,null,null,null,""]
[272,null,null,null,""]
[273,null,null,null,""]
[274,null,null,null,""]
[275,null,null,null,""]
[276,null,null,null,""]
[277,null,null,null,""]
[278,null,null,null,""]
[279,null,null,null,""]
[280,null,null,null,""]
[281,null,null,null,""]
[282,null,null,null,""]
[283,null,null,null,""]
[284,null,null,null,""]
[285,null,null,null,""]
[286,null,null,null,""]
[287,null,null,null,""]
[288,null,null,null,""]
[289,null,null,null,""]
[290,null,null,null,""]
[291,null,null,null,""]
[292,null,null,null,""]
[293,null,null,null,""]
[294,null,null,null,""]
[295,null,null,null,""]
[296,null,null,null,""]
[297,null,null,null,""]
[298,null,null,null,""]
[299,null,null,null,""]
[300,null,null,null,""]
[301,null,null,null,""]
[302,null,null,null,""]
[303,null,null,null,""]
[304,null,null,null,""]
[305,null,null,null,""]
[306,null,null,null,""]
[307,null,null,null,""]
[308,null,null,null,""]
[309,null,null,null,""]
[310,null,null,null,""]
[311,null,null,null,""]
[312,null,null,null,""]
[313,null,null,null,""]
[314,null,null,null,""]
[315,null,null,null,""]
[316,null,null,null,""]
[317,null,null,null,""]
[318,null,null,null,""]
[319,null,null,null,""]
[320,null,null,null,""]
[321,null,null,null,""]
[322,null,null,null,{"$f":"IF(D328=\"\",\"\",+D328)","v":""}]
[323,null,null,null,""]
[324,null,null,null,""]
[325,null,null,null,""]
[326,null,null,null,""]
[327,null,null,null,""]
[328,null,null,null,""]
[329,null,null,null,""]
[330,null,null,null,""]
[331,null,null,null,""]
[332,null,null,null,""]
[333,null,null,null,""]
[334,null,null,null,""]
[335,null,null,null,""]
[336,null,null,null,""]
[337,null,null,null,""]
[338,null,null,null,""]
[339,null,null,null,""]
[340,null,null,null,""]
[341,null,null,null,""]
[342,null,null,null,""]
[343,null,null,null,""]
[344,null,null,null,""]
[345,null,null,null,""]
[346,null,null,null,""]
[347,null,null,null,""]
[348,null,null,null,""]
[349,null,null,null,""]
[350,null,null,null,""]
[351,null,null,null,""]
[352,null,null,null,""]
[353,null,null,null,""]
[354,null,null,null,""]
[355,null,null,null,""]
[356,null,null,null,""]
[357,null,null,null,""]
[358,null,null,null,""]
[359,null,null,null,""]
[360,null,null,null,""]
[361,null,null,null,""]
[362,null,null,null,""]
[363,null,null,null,""]
[364,null,null,null,""]
[365,null,null,null,""]
[366,null,null,null,""]
[367,null,null,null,""]
[368,null,null,null,""]
[369,null,null,null,""]
[370,null,null,null,""]
[371,null,null,null,""]
[372,null,null,null,""]
[373,null,null,null,""]
[374,null,null,null,""]
[375,null,null,null,""]
[376,null,null,null,""]
[377,null,null,null,""]
[378,null,null,null,""]
[379,null,null,null,""]
[380,null,null,null,""]
[381,null,null,null,""]
[382,null,null,null,""]
[383,null,null,null,""]
[384,null,null,null,""]
[385,null,null,null,""]
[386,null,null,null,{"$f":"IF(D392=\"\",\"\",+D392)","v":""}]
[387,null,null,null,""]
[388,null,null,null,""]
[389,null,null,null,""]
[390,null,null,null,""]
[391,null,null,null,""]
[392,null,null,null,""]
[393,null,null,null,""]
[394,null,null,null,""]
[395,null,null,null,""]
[396,null,null,null,""]
[397,null,null,null,""]
[398,null,null,null,""]
[399,null,null,null,""]
[400,null,null,null,""]
[401,null,null,null,""]
[402,null,null,null,""]
[403,null,null,null,""]
[404,null,null,null,""]
[405,null,null,null,""]
[406,null,null,null,""]
[407,null,null,null,""]
[408,null,null,null,""]
[409,null,null,null,""]
[410,null,null,null,""]
[411,null,null,null,""]
[412,null,null,null,""]
[413,null,null,null,""]
[414,null,null,null,""]
[415,null,null,null,""]
[416,null,null,null,""]
[417,null,null,null,""]
[418,null,null,null,""]
[419,null,null,null,""]
[420,null,null,null,""]
[421,null,null,null,""]
[422,null,null,null,""]
[423,null,null,null,""]
[424,null,null,null,""]
[425,null,null,null,""]
[426,null,null,null,""]
[427,null,null,null,""]
[428,null,null,null,""]
[429,null,null,null,""]
[430,null,null,null,""]
[431,null,null,null,""]
[432,null,null,null,""]
[433,null,null,null,""]
[434,null,null,null,""]
[435,null,null,null,""]
[436,null,null,null,""]
[437,null,null,null,""]
[438,null,null,null,""]
[439,null,null,null,""]
[440,null,null,null,""]
[441,null,null,null,""]
[442,null,null,null,""]
[443,null,null,null,""]
[444,null,null,null,""]
[445,null,null,null,""]
[446,null,null,null,""]
[447,null,null,null,""]
[448,null,null,null,""]
[449,null,null,null,""]
[450,null,null,null,{"$f":"IF(D456=\"\",\"\",+D456)","v":""}]
[451,null,null,null,""]
[452,null,null,null,""]
[453,null,null,null,""]
[454,null,null,null,""]
[455,null,null,null,""]
[456,null,null,null,""]
[457,null,null,null,""]
[458,null,null,null,""]
[459,null,null,null,""]
[460,null,null,null,""]
[461,null,null,null,""]
[462,null,null,null,""]
[463,null,null,null,""]
[464,null,null,null,""]
[465,null,null,null,""]
[466,null,null,null,""]
[467,null,null,null,""]
[468,null,null,null,""]
[469,null,null,null,""]
[470,null,null,null,""]
[471,null,null,null,""]
[472,null,null,null,""]
[473,null,null,null,""]
[474,null,null,null,""]
[475,null,null,null,""]
[476,null,null,null,""]
[477,null,null,null,""]
[478,null,null,null,""]
[479,null,null,null,""]
[480,null,null,null,""]
[481,null,null,null,""]
[482,null,null,null,""]
[483,null,null,null,""]
[484,null,null,null,""]
[485,null,null,null,""]
[486,null,null,null,""]
[487,null,null,null,""]
[488,null,null,null,""]
[489,null,null,null,""]
[490,null,null,null,""]
[491,null,null,null,""]
[492,null,null,null,""]
[493,null,null,null,""]
[494,null,null,null,""]
[495,null,null,null,""]
[496,null,null,null,""]
[497,null,null,null,""]
[498,null,null,null,""]
[499,null,null,null,""]
[500,null,null,null,""]

{"sheet":"Listas","index":2,"n_rows":26,"n_cols":13,"rows_kept":26,"cut":false,"hidden":true,"merged":[]}
[0,"Naturaleza del Empleo","Tipo de Planta","Clase de Planta","DIRECTIVO_DOCENTE","DOCENTE","Dependencia","Decreto","Decreto_2277","Decreto_1278","No_Escalafonados","Etnoeducadores","Instructor_INEM_ITA"]
[null,"DOCENTES","ESTRUCTURAL","DOCENTES","COORDINADOR","DOCENTE DE APOYO","SECRETARIA DE EDUCACION","Decreto_2277","A","1A","Bachiller","ET BACHILLER U OTRO TIPO DE FORMACIÓN","I,II Y A"]
[null,null,null,null,"DIRECTOR DE NUCLEO","DOCENTE ORIENTADOR",null,"Decreto_1278","B","1B","Técnico Profesional o Tecnólogo","ET NORMALISTA SUPERIOR O TECNÓLOGO EN EDUCACIÓN","III y B"]
[null,null,null,null,"DIRECTOR RURAL","DOCENTE DE AULA ",null,"No_Escalafonados","01","1C","Profesional Universitario","ET LICENCIADO O PROFESIONAL NO LICENCIADO","IV y C"]
[null,null,null,null,"RECTOR","DOCENTE TUTOR",null,"Etnoeducadores","02","1D",null,"ET LICENCIADO O PROFESIONAL NO LICENCIADO CON ESPECIALIZACIÓN"]
[null,null,null,null,"SUPERVISOR DE EDUCACION",null,null,"Instructor_INEM_ITA","03","2A",null,"ET LICENCIADO O PROFESIONAL NO LICENCIADO CON MAESTRÍA"]
[null,null,null,null,null,null,null,null,"04","2AE",null,"ET LICENCIADO O PROFESIONAL NO LICENCIADO CON DOCTORADO"]
[null,null,null,null,null,null,null,null,"05","2AM"]
[null,null,null,null,null,null,null,null,"06","2B"]
[null,null,null,null,null,null,null,null,"07","2BD"]
[null,null,null,null,null,null,null,null,"08","2BE"]
[null,null,null,null,null,null,null,null,"09","2BM"]
[null,null,null,null,null,null,null,null,"10","2C"]
[null,null,null,null,null,null,null,null,"11","2CE"]
[null,null,null,null,null,null,null,null,"12","2CM"]
[null,null,null,null,null,null,null,null,"13","2D"]
[null,null,null,null,null,null,null,null,"14","2DE"]
[null,null,null,null,null,null,null,null,null,"2DM"]
[null,null,null,null,null,null,null,null,null,"3AD"]
[null,null,null,null,null,null,null,null,null,"3AM"]
[null,null,null,null,null,null,null,null,null,"3BD"]
[null,null,null,null,null,null,null,null,null,"3BM"]
[null,null,null,null,null,null,null,null,null,"3CD"]
[null,null,null,null,null,null,null,null,null,"3CM"]
[null,null,null,null,null,null,null,null,null,"3DD"]
[null,null,null,null,null,null,null,null,null,"3DM"]

{"sheet":"Hoja1","index":3,"n_rows":16,"n_cols":18,"rows_kept":16,"cut":false,"hidden":true,"merged":[]}
["Movimiento/Situación administrativa",null,"Naturaleza del cargo",null,"Tipo nombramiento",null,"Tipo nombramiento",null,"Nombre Tipo de Nombramiento"," Nombre Tipo de Provisión",null,"Nombre Tipo de Nombramiento",null,"Tipo planta",null,"Clase planta",null,"Funciones jefe"]
[null,null,"CARRERA",null,null,null,null,null,"ELECCIÓN POPULAR","LNR A PRIMER NIVEL",null,"LIBRE NOMBRAMIENTO Y REMOCIÓN",null,"Estructural",null,"Permanente",null,"Jefe de Contratación"]
["COMISIÓN PARA DESEMPEÑAR EMPLEOS DE LNR EN LA MISMA INTITUCIÓN",null,"DE ELECCIÓN POPULAR",null,"ELECCIÓN POPULAR",null,"PROVISIONAL",null,"ESCALAFONADO EN CARRERA","ESCALAFONADO EN CARRERA",null,"NOMBRAMIENTO PROVISIONAL",null,"Global",null,"Temporal",null,"Jefe de Control Interno"]
["COMISIÓN PARA DESEMPEÑAR EMPLEOS DE LNR EN OTRA INTITUCIÓN",null,"DE PERÍODO FIJO",null,"ESCALAFONADO EN CARRERA",null,null,null,"LIBRE NOMBRAMIENTO Y REMOCIÓN","LNR PARA NIVELES DIFERENTES AL PRIMERO",null,null,null,null,null,"Transitoria",null,"Jefe de Planeación"]
["COMISION POR ESTUDIOS EN EL EXTERIOR",null,"LIBRE NOMBRAMIENTO Y REMOCIÓN",null,"LIBRE NOMBRAMIENTO Y REMOCIÓN",null,null,null,"NOMBRAMIENTO PROVISIONAL","NOMBRAMIENTO PROVISIONAL",null,null,null,null,null,null,null,"Jefe de Prensa/Comunicaciones"]
["ENCARGO EN EMPLEO TEMPORAL",null,"TEMPORAL",null,"PERIODO FIJO",null,null,null,"PERIODO DE  PRUEBA","PERIODO DE PRUEBA",null,null,null,null,null,null,null,"Jefe de Recursos humanos/Talento humano"]
["ENCARGO EN EMPLEOS DE CARRERA",null,"TRABAJADOR OFICIAL",null,"PROVISIONAL",null,null,null,"PERIODO FIJO","LNR PARA NIVELES DIFERENTES AL PRIMERO",null,null,null,null,null,null,null,"Jefe Jurídico"]
["ENCARGO EN UN EMPLEO DE LNR"]
["ENCARGO EN UN EMPLEO DE LNR EN OTRA INSTITUCIÓN",null,"Nivel"]
["LICENCIA ORDINARIA"]
["LICENCIAS",null,"ASESOR"]
["LNR A LNR",null,"ASISTENCIAL"]
["PERIODO DE PRUEBA EN ASCENSO EN LA MISMA INSTITUCIÓN",null,"DIRECTIVO"]
["PERIODO DE PRUEBA EN ASCENSO EN OTRA INSTITUCIÓN",null,"PROFESIONAL"]
["PROVISIONAL A PROVISIONAL",null,"TÉCNICO"]
["TRASLADO INSTERINSTITUCIONAL"]

{"sheet":"Base_info_empleo","index":4,"n_rows":130,"n_cols":12,"rows_kept":130,"cut":false,"hidden":true,"merged":[]}
["Nivel","ASESOR","ASISTENCIAL","DIRECTIVO","PROFESIONAL","TÉCNICO",null,null,"Cód.","Denominación","Nivel","Cód."]
["ASESOR","Asesor","Auxiliar Administrativo","Alcalde","Almacenista General","Agente de Tránsito"]
["ASISTENCIAL","Jefe de Oficina Asesora de Jurídica o de Planeación o de Prensa o de Comunicaciones.","Auxiliar Área Salud","Alcalde Local","Comandante de Bomberos","Auxiliar de Vuelo",null,null,"001","Gobernador","Directivo","001"]
["DIRECTIVO",null,"Auxiliar de Servicios Generales","Auditor Fiscal de Contraloría","Comandante de Tránsito","Inspector de Policía 3ª a 6ª Categoría",null,null,"003","Decano de Escuela o Institución Tecnológica","Directivo","003"]
["PROFESIONAL",null,"Ayudante","Consejero de Justicia","Comisario de Familia","Inspector de Policía Rural",null,null,"005","Alcalde","Directivo","005"]
["TÉCNICO",null,"Bombero","Contralor","Copiloto de Aviación","Inspector de Tránsito y Transporte",null,null,"006","Jefe de Oficina","Directivo","006"]
[null,null,"Cabo de Bomberos","Contralor Auxiliar","Corregidor","Instructor",null,null,"007","Decano de Institución Universitaria","Directivo","007"]
[null,null,"Cabo de Prisiones","Decano de Escuela o Institución Tecnológica","Director de Banda","Subcomandante de Bomberos",null,null,"008","Decano de Universidad","Directivo","008"]
[null,null,"Capitán de Bomberos","Decano de Institución Universitaria","Director de Cárcel","Subcomandante de de transito",null,null,"009","Director Administrativo o Financiero o Técnico u Operativo","Directivo","009"]
[null,null,"Celador","Decano de Universidad","Director de Centro de Escuela Tecnológica","Técnico Administrativo",null,null,"010","Contralor","Directivo","010"]
[null,null,"Conductor","Director Administrativo o Financiero o Técnico u Operativo","Director de Centro de Institución Técnica Profesional","Técnico Área Salud",null,null,"015","Personero","Directivo","015"]
[null,null,"Conductor Mecánico","Director de Area Metropolitana","Director de Centro de Institución Universitaria","Técnico Operativo",null,null,"016","Director Ejecutivo de Asociación de Municipios","Directivo","016"]
[null,null,"Guardián","Director de Departamento Administrativo","Director de Orquesta","Técnico Operativo de Tránsito",null,null,"017","Personero Auxiliar","Directivo","017"]
[null,null,"Inspector","Director de Escuela o de Instituto o de Centro de Universidad","Enfermero",null,null,null,"020","Secretario de Despacho","Directivo","020"]
[null,null,"Operario","Director de Hospital","Enfermero Especialista",null,null,null,"024","Director o Gerente Regional o Provincial","Directivo","024"]
[null,null,"Operario Calificado","Director Ejecutivo de Asociación de Municipios","Inspector de Policía Urbano 2ª Categoría",null,null,null,"025","Subcontralor","Directivo","025"]
[null,null,"Sargento de Bomberos","Director Local de Salud","Inspector de Policía Urbano Categoría Especial y 1ª Categoría",null,null,null,"027","Jefe de Departamento de Universidad","Directivo","027"]
[null,null,"Sargento de Prisiones","Director o Gerente General de Entidad Descentralizada","Líder de Programa",null,null,null,"028","Director de Escuela o de Instituto o de Centro de Universidad","Directivo","028"]
[null,null,"Secretario","Director o Gerente Regional o Provincial","Líder de Proyecto",null,null,null,"030","Alcalde Local","Directivo","030"]
[null,null,"Secretario Bilingüe","Gerente","Maestro en Artes",null,null,null,"032","Consejero de Justicia","Directivo","032"]
[null,null,"Secretario Ejecutivo","Gerente Empresa Social del Estado","Médico Especialista",null,null,null,"035","Contralor Auxiliar","Directivo","035"]
[null,null,"Secretario Ejecutivo del Despacho del Alcalde","Gobernador","Médico General",null,null,null,"036","Auditor Fiscal de Contraloría","Directivo","036"]
[null,null,"Secretario Ejecutivo del Despacho del Gobernador","Jefe de Departamento de Universidad","Músico de Banda",null,null,null,"039","Gerente","Directivo","039"]
[null,null,"Teniente de Bomberos","Jefe de Oficina","Músico de Orquesta",null,null,null,"040","Personero Delegado","Directivo","040"]
[null,null,"Teniente de Prisiones","Personero","Odontólogo",null,null,null,"042","Rector de Institución Técnica Profesional","Directivo","042"]
[null,null,null,"Personero Auxiliar","Odontólogo Especialista",null,null,null,"043","Personero Local de Bogotá","Directivo","043"]
[null,null,null,"Personero Delegado","Piloto de Aviación",null,null,null,"045","Subsecretario de Despacho","Directivo","045"]
[null,null,null,"Personero Local de Bogotá","Profesional Especializado",null,null,null,"048","Rector de Institución Universitaria o de Escuela o de Institución Tecnológica","Directivo","048"]
[null,null,null,"Presidente Consejo de Justicia","Profesional Especializado Área Salud",null,null,null,"050","Director o Gerente General de Entidad Descentralizada","Directivo","050"]
[null,null,null,"Rector de Institución Técnica Profesional","Profesional Servicio Social Obligatorio",null,null,null,"052","Secretario General de Universidad","Directivo","052"]
[null,null,null,"Rector de Institución Universitaria o de Escuela o de Institución Tecnológica","Profesional Universitario",null,null,null,"054","Secretario General de Entidad Descentralizada","Directivo","054"]
[null,null,null,"Rector de Universidad","Profesional Universitario Área Salud",null,null,null,"055","Director de Departamento Administrativo","Directivo","055"]
[null,null,null,"Secretario de Despacho","Tesorero General",null,null,null,"057","Vicerrector de Escuela Tecnológica o de Institución Tecnológica","Directivo","057"]
[null,null,null,"Secretario General de Entidad Descentralizada",null,null,null,null,"058","Secretario General de Institución Técnica Profesional","Directivo","058"]
[null,null,null,"Secretario General de Escuela o de Institución Tecnológica",null,null,null,null,"060","Director de Area Metropolitana","Directivo","060"]
[null,null,null,"Secretario General de Institución Técnica Profesional",null,null,null,null,"064","Secretario General de Institución Universitaria","Directivo","064"]
[null,null,null,"Secretario General de Institución Universitaria",null,null,null,null,"065","Director de Hospital","Directivo","065"]
[null,null,null,"Secretario General de Organismo de Control",null,null,null,null,"066","Secretario General de Escuela o de Institución Tecnológica","Directivo","066"]
[null,null,null,"Secretario General de Universidad",null,null,null,null,"067","Rector de Universidad","Directivo","067"]
[null,null,null,"Secretario Seccional o Local de Salud",null,null,null,null,"068","Subdirector Administrativo o Financiero o Técnico u Operativo","Directivo","068"]
[null,null,null,"Subcontralor",null,null,null,null,"070","Subdirector","Directivo","070"]
[null,null,null,"Subdirector",null,null,null,null,"071","Presidente Consejo de Justicia","Directivo","071"]
[null,null,null,"Subdirector Administrativo o Financiero o Técnico u Operativo",null,null,null,null,"072","Subdirector Científico","Directivo","072"]
[null,null,null,"Subdirector Científico",null,null,null,null,"073","Secretario General de Organismo de Control","Directivo","073"]
[null,null,null,"Subdirector de Área Metropolitana",null,null,null,null,"074","Subdirector de Área Metropolitana","Directivo","074"]
[null,null,null,"Subdirector de Departamento Administrativo",null,null,null,null,"076","Subdirector de Departamento Administrativo","Directivo","076"]
[null,null,null,"Subdirector Ejecutivo de Asociación de Municipios",null,null,null,null,"077","Vicerrector de Universidad","Directivo","077"]
[null,null,null,"Subdirector o Subgerente General de Entidad Descentralizada",null,null,null,null,"078","Subdirector Ejecutivo de Asociación de Municipios","Directivo","078"]
[null,null,null,"Subgerente",null,null,null,null,"080","Director Local de Salud","Directivo","080"]
[null,null,null,"Subsecretario de Despacho",null,null,null,null,"084","Subdirector o Subgerente General de Entidad Descentralizada","Directivo","084"]
[null,null,null,"Tesorero Distrital",null,null,null,null,"085","Gerente Empresa Social del Estado","Directivo","085"]
[null,null,null,"Veedor Distrital",null,null,null,null,"090","Subgerente","Directivo","090"]
[null,null,null,"Veedor Distrital Delegado",null,null,null,null,"091","Tesorero Distrital","Directivo","091"]
[null,null,null,"Vicerrector de Escuela Tecnológica o de Institución Tecnológica",null,null,null,null,"094","Veedor Distrital","Directivo","094"]
[null,null,null,"Vicerrector de Institución Técnica Profesional",null,null,null,null,"095","Viceveedor Distrital","Directivo","095"]
[null,null,null,"Vicerrector de Institución Universitaria",null,null,null,null,"096","Vicerrector de Institución Técnica Profesional","Directivo","096"]
[null,null,null,"Vicerrector de Universidad",null,null,null,null,"097","Secretario Seccional o Local de Salud","Directivo","097"]
[null,null,null,"Viceveedor Distrital",null,null,null,null,"098","Vicerrector de Institución Universitaria","Directivo","098"]
[null,null,null,null,null,null,null,null,"099","Veedor Distrital Delegado","Directivo","099"]
[null,null,null,null,null,null,null,null,"105","Asesor","Asesor","105"]
[null,null,null,null,null,null,null,null,"115","Jefe de Oficina Asesora de Jurídica o de Planeación o de Prensa o de Comunicaciones.","Asesor","115"]
[null,null,null,null,null,null,null,null,"201","Tesorero General","Profesional","201"]
[null,null,null,null,null,null,null,null,"202","Comisario de Familia","Profesional","202"]
[null,null,null,null,null,null,null,null,"203","Comandante de Bomberos","Profesional","203"]
[null,null,null,null,null,null,null,null,"204","Copiloto de Aviación","Profesional","204"]
[null,null,null,null,null,null,null,null,"206","Líder de Programa","Profesional","206"]
[null,null,null,null,null,null,null,null,"208","Líder de Proyecto","Profesional","208"]
[null,null,null,null,null,null,null,null,"209","Maestro en Artes","Profesional","209"]
[null,null,null,null,null,null,null,null,"211","Médico General","Profesional","211"]
[null,null,null,null,null,null,null,null,"213","Médico Especialista","Profesional","213"]
[null,null,null,null,null,null,null,null,"214","Odontólogo","Profesional","214"]
[null,null,null,null,null,null,null,null,"215","Almacenista General","Profesional","215"]
[null,null,null,null,null,null,null,null,"216","Odontólogo Especialista","Profesional","216"]
[null,null,null,null,null,null,null,null,"217","Profesional Servicio Social Obligatorio","Profesional","217"]
[null,null,null,null,null,null,null,null,"219","Profesional Universitario","Profesional","219"]
[null,null,null,null,null,null,null,null,"221","Músico de Orquesta","Profesional","221"]
[null,null,null,null,null,null,null,null,"222","Profesional Especializado","Profesional","222"]
[null,null,null,null,null,null,null,null,"227","Corregidor","Profesional","227"]
[null,null,null,null,null,null,null,null,"231","Músico de Banda","Profesional","231"]
[null,null,null,null,null,null,null,null,"232","Director de Centro de Institución Técnica Profesional","Profesional","232"]
[null,null,null,null,null,null,null,null,"233","Inspector de Policía Urbano Categoría Especial y 1ª Categoría","Profesional","233"]
[null,null,null,null,null,null,null,null,"234","Inspector de Policía Urbano 2ª Categoría","Profesional","234"]
[null,null,null,null,null,null,null,null,"235","Director de Centro de Institución Universitaria","Profesional","235"]
[null,null,null,null,null,null,null,null,"236","Director de Centro de Escuela Tecnológica","Profesional","236"]
[null,null,null,null,null,null,null,null,"237","Profesional Universitario Área Salud","Profesional","237"]
[null,null,null,null,null,null,null,null,"242","Profesional Especializado Área Salud","Profesional","242"]
[null,null,null,null,null,null,null,null,"243","Enfermero","Profesional","243"]
[null,null,null,null,null,null,null,null,"244","Enfermero Especialista","Profesional","244"]
[null,null,null,null,null,null,null,null,"260","Director de Cárcel","Profesional","260"]
[null,null,null,null,null,null,null,null,"265","Director de Banda","Profesional","265"]
[null,null,null,null,null,null,null,null,"270","Director de Orquesta","Profesional","270"]
[null,null,null,null,null,null,null,null,"275","Piloto de Aviación","Profesional","275"]
[null,null,null,null,null,null,null,null,"290","Comandante de Tránsito","Profesional","290"]
[null,null,null,null,null,null,null,null,"303","Inspector de Policía 3ª a 6ª Categoría","Tecnico","303"]
[null,null,null,null,null,null,null,null,"306","Inspector de Policía Rural","Tecnico","306"]
[null,null,null,null,null,null,null,null,"312","Inspector de Tránsito y Transporte","Tecnico","312"]
[null,null,null,null,null,null,null,null,"313","Instructor","Tecnico","313"]
[null,null,null,null,null,null,null,null,"314","Técnico Operativo","Tecnico","314"]
[null,null,null,null,null,null,null,null,"323","Técnico Área Salud","Tecnico","323"]
[null,null,null,null,null,null,null,null,"335","Auxiliar de Vuelo","Tecnico","335"]
[null,null,null,null,null,null,null,null,"336","Subcomandante de Bomberos","Tecnico","336"]
[null,null,null,null,null,null,null,null,"338","Subcomandante de de transito","Tecnico","338"]
[null,null,null,null,null,null,null,null,"339","Técnico Operativo de Tránsito","Tecnico","339"]
[null,null,null,null,null,null,null,null,"367","Técnico Administrativo","Tecnico","367"]
[null,null,null,null,null,null,null,null,"340","Agente de Tránsito","Tecnico","340"]
[null,null,null,null,null,null,null,null,"403","Agente de Tránsito","Asistencial","403"]
[null,null,null,null,null,null,null,null,"407","Auxiliar Administrativo","Asistencial","407"]
[null,null,null,null,null,null,null,null,"411","Capitán de Bomberos","Asistencial","411"]
[null,null,null,null,null,null,null,null,"412","Auxiliar Área Salud","Asistencial","412"]
[null,null,null,null,null,null,null,null,"413","Cabo de Bomberos","Asistencial","413"]
[null,null,null,null,null,null,null,null,"416","Inspector","Asistencial","416"]
[null,null,null,null,null,null,null,null,"417","Sargento de Bomberos","Asistencial","417"]
[null,null,null,null,null,null,null,null,"419","Teniente de Bomberos","Asistencial","419"]
[null,null,null,null,null,null,null,null,"420","Secretario Bilingüe","Asistencial","420"]
[null,null,null,null,null,null,null,null,"425","Secretario Ejecutivo","Asistencial","425"]
[null,null,null,null,null,null,null,null,"428","Cabo de Prisiones","Asistencial","428"]
[null,null,null,null,null,null,null,null,"430","Secretario Ejecutivo del Despacho del Gobernador","Asistencial","430"]
[null,null,null,null,null,null,null,null,"438","Sargento de Prisiones","Asistencial","438"]
[null,null,null,null,null,null,null,null,"438","Secretario Ejecutivo del Despacho del Alcalde","Asistencial","438"]
[null,null,null,null,null,null,null,null,"440","Secretario","Asistencial","440"]
[null,null,null,null,null,null,null,null,"457","Teniente de Prisiones","Asistencial","457"]
[null,null,null,null,null,null,null,null,"470","Auxiliar de Servicios Generales","Asistencial","470"]
[null,null,null,null,null,null,null,null,"472","Ayudante","Asistencial","472"]
[null,null,null,null,null,null,null,null,"475","Bombero","Asistencial","475"]
[null,null,null,null,null,null,null,null,"477","Celador","Asistencial","477"]
[null,null,null,null,null,null,null,null,"480","Conductor","Asistencial","480"]
[null,null,null,null,null,null,null,null,"482","Conductor Mecánico","Asistencial","482"]
[null,null,null,null,null,null,null,null,"485","Guardián","Asistencial","485"]
[null,null,null,null,null,null,null,null,"487","Operario","Asistencial","487"]
[null,null,null,null,null,null,null,null,"490","Operario Calificado","Asistencial","490"]

{"sheet":"Hoja5","index":5,"n_rows":14,"n_cols":4,"rows_kept":14,"cut":false,"hidden":true,"merged":[]}
[]
[]
[null,null,null,"TIPO DE NORMA"]
[null,null,null,"Acta"]
[null,null,null,"Acto Legislativo"]
[null,null,null,"Acuerdo Distrital/Municipal"]
[null,null,null,"Acuerdo Junta/Concejo"]
[null,null,null,"Constitución"]
[null,null,null,"Decreto"]
[null,null,null,"Decreto reglamentario"]
[null,null,null,"Decreto-Ley"]
[null,null,null,"Ley"]
[null,null,null,"Ordenanza"]
[null,null,null,"Resolución"]